[Event "***Titled Tuesday 3|2 Blitz"]
[Site "Chess.com"]
[Date "2017.02.07"]
[Round "1"]
[White "twitchTriniCupid"]
[Black "biostatistician"]
[Result "0-1"]
[WhiteElo "2116"]
[BlackElo "2493"]
[TimeControl "180+2"]
[EndTime "13:08:52 PST"]
[Termination "biostatistician won by resignation"]

1. Nf3 {[%clk 0:03:02]} 1... Nf6 {[%clk 0:03:00.6]} 2. b3 {[%clk 0:03:01.3]}
2... g6 {[%clk 0:03:00.9]} 3. Bb2 {[%clk 0:03:03]} 3... Bg7 {[%clk 0:03:02.6]}
4. e4 {[%clk 0:03:04.4]} 4... O-O {[%clk 0:03:01.5]} 5. e5 {[%clk 0:03:01.7]}
5... Nd5 {[%clk 0:03:02.2]} 6. d4 {[%clk 0:03:02.3]} 6... d6 {[%clk 0:03:02.7]}
7. c4 {[%clk 0:03:03.4]} 7... Nb6 {[%clk 0:03:01.5]} 8. Be2 {[%clk 0:03:01]}
8... Bg4 {[%clk 0:02:58.7]} 9. h3 {[%clk 0:02:59.7]} 9... Bxf3 {[%clk
0:02:55.7]} 10. Bxf3 {[%clk 0:03:01.6]} 10... c6 {[%clk 0:02:56.5]} 11. O-O
{[%clk 0:02:56.8]} 11... dxe5 {[%clk 0:02:48.4]} 12. dxe5 {[%clk 0:02:58.7]}
12... N8d7 {[%clk 0:02:49.6]} 13. Qe2 {[%clk 0:02:58.7]} 13... Nc5 {[%clk
0:02:49.7]} 14. Rd1 {[%clk 0:02:59.5]} 14... Qc7 {[%clk 0:02:50.2]} 15. Nc3
{[%clk 0:02:59.6]} 15... Rfd8 {[%clk 0:02:49]} 16. Ne4 {[%clk 0:02:51.3]} 16...
Nxe4 {[%clk 0:02:38.2]} 17. Qxe4 {[%clk 0:02:52.2]} 17... Nd7 {[%clk 0:02:36.1]}
18. Re1 {[%clk 0:02:46.1]} 18... Nc5 {[%clk 0:02:33.9]} 19. Qc2 {[%clk
0:02:27.9]} 19... Nd3 {[%clk 0:02:30.3]} 20. Rad1 {[%clk 0:02:06.3]} 20... Nxe5
{[%clk 0:02:19]} 21. Bxe5 {[%clk 0:01:58.8]} 21... Bxe5 {[%clk 0:02:20.9]} 22.
Rxd8+ {[%clk 0:01:56.6]} 22... Rxd8 {[%clk 0:02:21]} 23. Rd1 {[%clk 0:01:57.9]}
23... Kg7 {[%clk 0:02:17.2]} 24. Rxd8 {[%clk 0:01:56.9]} 24... Qxd8 {[%clk
0:02:19.1]} 25. g3 {[%clk 0:01:55]} 25... Qd4 {[%clk 0:02:16.9]} 26. Kg2 {[%clk
0:01:56.3]} 26... a5 {[%clk 0:02:04.2]} 27. a4 {[%clk 0:01:54.2]} 27... h5
{[%clk 0:01:52.5]} 28. h4 {[%clk 0:01:53.8]} 28... Bd6 {[%clk 0:01:47.8]} 29.
Qe4 {[%clk 0:01:33.1]} 29... Qb2 {[%clk 0:01:48]} 30. Bd1 {[%clk 0:01:32.3]}
30... Bc5 {[%clk 0:01:44.6]} 31. Qe2 {[%clk 0:01:32.5]} 31... Qd4 {[%clk
0:01:45.1]} 32. Qf3 {[%clk 0:01:24.8]} 32... e5 {[%clk 0:01:42.5]} 33. Bc2
{[%clk 0:01:25]} 33... f5 {[%clk 0:01:41]} 34. Qe2 {[%clk 0:01:24.5]} 34... Kf6
{[%clk 0:01:40.5]} 35. Bd3 {[%clk 0:01:15.1]} 35... e4 {[%clk 0:01:36.9]} 36.
Bc2 {[%clk 0:01:13.7]} 36... Ke5 {[%clk 0:01:38.3]} 37. Bd1 {[%clk 0:01:10]}
37... Qc3 {[%clk 0:01:30]} 38. Qc2 {[%clk 0:01:08.4]} 38... Qxc2 {[%clk
0:01:24.7]} 39. Bxc2 {[%clk 0:01:10.3]} 39... Kd4 {[%clk 0:01:26.3]} 40. Kf1
{[%clk 0:01:10.6]} 40... Kc3 {[%clk 0:01:27.2]} 41. Bd1 {[%clk 0:01:11.8]} 41...
Kd2 {[%clk 0:01:28.2]} 42. Be2 {[%clk 0:01:06.8]} 42... Kc3 {[%clk 0:01:08.2]}
43. Bd1 {[%clk 0:01:07.1]} 43... Kd2 {[%clk 0:01:08]} 44. Be2 {[%clk 0:01:03.4]}
44... Kc2 {[%clk 0:01:08.8]} 45. f3 {[%clk 0:01:01.1]} 45... exf3 {[%clk
0:01:05.2]} 46. Bxf3 {[%clk 0:01:02.5]} 46... Kxb3 {[%clk 0:01:06.7]} 47. g4
{[%clk 0:00:56.5]} 47... hxg4 {[%clk 0:01:05.8]} 48. Bd1+ {[%clk 0:00:57.4]}
48... Kxc4 {[%clk 0:01:06.2]} 49. Ke2 {[%clk 0:00:57.6]} 49... Be7 {[%clk
0:01:05.4]} 50. h5 {[%clk 0:00:58.2]} 50... gxh5 {[%clk 0:01:05.9]} 51. Ke3
{[%clk 0:00:59.6]} 51... Bg5+ {[%clk 0:01:05.6]} 52. Kf2 {[%clk 0:01:00.9]}
52... h4 {[%clk 0:01:07.1]} 53. Kg2 {[%clk 0:01:01.4]} 53... h3+ {[%clk
0:01:07.9]} 54. Kg3 {[%clk 0:01:02.1]} 54... b5 {[%clk 0:01:09.2]} 55. Bc2
{[%clk 0:01:01.1]} 55... Bf4+ {[%clk 0:00:55.6]} 56. Kf2 {[%clk 0:00:58.8]}
56... g3+ {[%clk 0:00:53.9]} 57. Kg1 {[%clk 0:00:59.7]} 57... Be3+ {[%clk
0:00:54.3]} 0-1

[Event "***Titled Tuesday 3|2 Blitz"]
[Site "Chess.com"]
[Date "2017.02.07"]
[Round "1"]
[White "VMikhalevski"]
[Black "Andrejkin"]
[Result "1-0"]
[WhiteElo "2513"]
[BlackElo "2176"]
[TimeControl "180+2"]
[EndTime "13:08:56 PST"]
[Termination "VMikhalevski won by resignation"]

1. Nf3 {[%clk 0:03:02]} 1... Nf6 {[%clk 0:03:00.1]} 2. g3 {[%clk 0:03:02.2]}
2... b6 {[%clk 0:02:56.3]} 3. Bg2 {[%clk 0:03:01.6]} 3... Bb7 {[%clk 0:02:58.2]}
4. O-O {[%clk 0:03:02.4]} 4... e6 {[%clk 0:03:00.1]} 5. c4 {[%clk 0:02:59.9]}
5... Be7 {[%clk 0:03:01]} 6. d4 {[%clk 0:03:00]} 6... O-O {[%clk 0:03:02.9]} 7.
d5 {[%clk 0:03:00.6]} 7... exd5 {[%clk 0:03:02.8]} 8. Nh4 {[%clk 0:03:00.8]}
8... c6 {[%clk 0:03:01.8]} 9. cxd5 {[%clk 0:03:00.2]} 9... Nxd5 {[%clk
0:02:57.2]} 10. Nf5 {[%clk 0:03:01]} 10... Nc7 {[%clk 0:02:56.3]} 11. e4 {[%clk
0:02:58.8]} 11... d5 {[%clk 0:02:57.5]} 12. Nc3 {[%clk 0:02:48.2]} 12... Bf6
{[%clk 0:02:58.3]} 13. exd5 {[%clk 0:02:42.1]} 13... cxd5 {[%clk 0:03:00.2]} 14.
Bf4 {[%clk 0:02:39.2]} 14... Nba6 {[%clk 0:02:58.7]} 15. Qg4 {[%clk 0:02:35.4]}
15... g6 {[%clk 0:02:43.9]} 16. Nd6 {[%clk 0:02:25.6]} 16... h5 {[%clk
0:02:15.7]} 17. Qe2 {[%clk 0:01:49.9]} 17... Rb8 {[%clk 0:01:41.5]} 18. Nxb7
{[%clk 0:01:47.4]} 18... Rxb7 {[%clk 0:01:36.5]} 19. Rad1 {[%clk 0:01:46.5]}
19... Nc5 {[%clk 0:01:30.2]} 20. Rfe1 {[%clk 0:01:36]} 20... N7e6 {[%clk
0:01:23.9]} 21. Bh6 {[%clk 0:01:25.3]} 21... Re8 {[%clk 0:01:01.6]} 22. Bxd5
{[%clk 0:01:21]} 22... Rd7 {[%clk 0:00:58.3]} 23. Bc6 {[%clk 0:01:21.7]} 23...
Bxc3 {[%clk 0:00:53]} 24. bxc3 {[%clk 0:01:16.5]} 24... Ng7 {[%clk 0:00:41.6]}
25. Qf3 {[%clk 0:01:01.3]} 25... Rxe1+ {[%clk 0:00:35.6]} 26. Rxe1 {[%clk
0:01:01.6]} 26... Nd3 {[%clk 0:00:31.5]} 27. Re3 {[%clk 0:00:53]} 27... Nf5
{[%clk 0:00:21.7]} 28. Bxd7 {[%clk 0:00:46]} 28... Nxe3 {[%clk 0:00:16.2]} 29.
Bb5 {[%clk 0:00:32.1]} 29... Nf5 {[%clk 0:00:10]} 30. Bd2 {[%clk 0:00:32.1]}
30... Ne5 {[%clk 0:00:07.3]} 31. Qe2 {[%clk 0:00:33.3]} 31... Ng4 {[%clk
0:00:05.1]} 32. h3 {[%clk 0:00:31.3]} 32... Nf6 {[%clk 0:00:05.7]} 33. Bg5
{[%clk 0:00:32.2]} 33... Nd6 {[%clk 0:00:05.4]} 34. Ba4 {[%clk 0:00:30.1]} 34...
Nde4 {[%clk 0:00:06]} 35. Qe3 {[%clk 0:00:29.6]} 35... Qe7 {[%clk 0:00:05.1]}
36. Bxf6 {[%clk 0:00:28.9]} 36... Qxf6 {[%clk 0:00:04.3]} 37. Qxe4 {[%clk
0:00:29.8]} 37... Qxc3 {[%clk 0:00:06.2]} 38. Bb3 {[%clk 0:00:29.9]} 1-0

[Event "***Titled Tuesday 3|2 Blitz"]
[Site "Chess.com"]
[Date "2017.02.07"]
[Round "1"]
[White "Cecile_Haussernot"]
[Black "Matibar"]
[Result "0-1"]
[WhiteElo "2276"]
[BlackElo "2561"]
[TimeControl "180+2"]
[EndTime "13:08:59 PST"]
[Termination "Matibar won by resignation"]

1. e4 {[%clk 0:03:02]} 1... e6 {[%clk 0:02:57.6]} 2. d4 {[%clk 0:03:01]} 2... d5
{[%clk 0:02:58.2]} 3. Bd3 {[%clk 0:03:01.6]} 3... dxe4 {[%clk 0:02:54.9]} 4.
Bxe4 {[%clk 0:03:02.3]} 4... Nf6 {[%clk 0:02:56.1]} 5. Bf3 {[%clk 0:03:03.5]}
5... Be7 {[%clk 0:02:53.8]} 6. Ne2 {[%clk 0:03:04.9]} 6... O-O {[%clk
0:02:55.4]} 7. O-O {[%clk 0:03:05.5]} 7... Nbd7 {[%clk 0:02:56.7]} 8. c4 {[%clk
0:03:01.8]} 8... c5 {[%clk 0:02:52.6]} 9. Be3 {[%clk 0:02:50.5]} 9... cxd4
{[%clk 0:02:49.9]} 10. Nxd4 {[%clk 0:02:51.7]} 10... Ne5 {[%clk 0:02:50]} 11.
Be2 {[%clk 0:02:50.8]} 11... a6 {[%clk 0:02:43.4]} 12. Nc3 {[%clk 0:02:51.8]}
12... Qc7 {[%clk 0:02:42.3]} 13. Qb3 {[%clk 0:02:26]} 13... Neg4 {[%clk
0:02:37]} 14. Bxg4 {[%clk 0:02:19.2]} 14... Nxg4 {[%clk 0:02:38.9]} 15. Nf3
{[%clk 0:02:20.5]} 15... Nxe3 {[%clk 0:02:39.8]} 16. fxe3 {[%clk 0:02:21.8]}
16... Bd7 {[%clk 0:02:39.2]} 17. Ne4 {[%clk 0:02:15.6]} 17... Bc6 {[%clk
0:02:38.7]} 18. Qc2 {[%clk 0:02:16.6]} 18... h6 {[%clk 0:02:37.7]} 19. b3 {[%clk
0:02:12.5]} 19... b6 {[%clk 0:02:34.6]} 20. Nd4 {[%clk 0:02:12.3]} 20... Bb7
{[%clk 0:02:35.3]} 21. Ng3 {[%clk 0:02:11]} 21... Qe5 {[%clk 0:02:33.2]} 22.
Rae1 {[%clk 0:02:10.7]} 22... Rad8 {[%clk 0:02:33.7]} 23. Nf3 {[%clk 0:01:58]}
23... Qc7 {[%clk 0:02:27.8]} 24. e4 {[%clk 0:01:57.7]} 24... Bb4 {[%clk
0:02:26.9]} 25. Re2 {[%clk 0:01:57.1]} 25... b5 {[%clk 0:02:18.8]} 26. Rc1
{[%clk 0:01:45]} 26... Bc5+ {[%clk 0:02:14.4]} 27. Kh1 {[%clk 0:01:45.2]} 27...
b4 {[%clk 0:02:15.4]} 28. Rf1 {[%clk 0:01:43.8]} 28... Qf4 {[%clk 0:02:02.4]}
29. Ne1 {[%clk 0:01:26.3]} 29... Qg4 {[%clk 0:01:53.8]} 30. Nd3 {[%clk
0:01:27.1]} 30... Bd6 {[%clk 0:01:52.1]} 31. Nf2 {[%clk 0:01:26.6]} 31... Qg6
{[%clk 0:01:51]} 32. Re3 {[%clk 0:01:26.8]} 32... Bf4 {[%clk 0:01:49.1]} 33. Rf3
{[%clk 0:01:27.9]} 33... Rd2 {[%clk 0:01:50]} 34. Qc1 {[%clk 0:01:19]} 34... Bg5
{[%clk 0:01:50.6]} 35. Nh3 {[%clk 0:01:20]} 35... Rxa2 {[%clk 0:01:43.3]} 36.
Nxg5 {[%clk 0:01:21]} 36... Qxg5 {[%clk 0:01:45.2]} 37. Qxg5 {[%clk 0:00:59.1]}
37... hxg5 {[%clk 0:01:45.8]} 38. c5 {[%clk 0:01:00.3]} 38... Rc2 {[%clk
0:01:44.8]} 39. Rd3 {[%clk 0:00:57.3]} 39... Rxc5 {[%clk 0:01:45.6]} 40. Rd4
{[%clk 0:00:58.7]} 40... a5 {[%clk 0:01:46.2]} 41. Rfd1 {[%clk 0:00:59]} 41...
Bc6 {[%clk 0:01:43.2]} 42. Rd6 {[%clk 0:00:59.1]} 42... a4 {[%clk 0:01:42.4]}
43. bxa4 {[%clk 0:00:59.8]} 43... Bxa4 {[%clk 0:01:44.3]} 44. Ra1 {[%clk
0:01:00.5]} 44... Rfc8 {[%clk 0:01:40.5]} 45. Kg1 {[%clk 0:00:59.2]} 45... Rc1+
{[%clk 0:01:25.9]} 46. Rxc1 {[%clk 0:00:59.8]} 46... Rxc1+ {[%clk 0:01:27.8]}
47. Kf2 {[%clk 0:01:00.9]} 47... b3 {[%clk 0:01:29.4]} 48. Rb6 {[%clk
0:00:59.8]} 48... Rc2+ {[%clk 0:01:28.3]} 49. Kf3 {[%clk 0:00:58.7]} 49... b2
{[%clk 0:01:29.4]} 50. Ne2 {[%clk 0:00:56]} 50... e5 {[%clk 0:01:27.1]} 51. Ke3
{[%clk 0:00:55.1]} 51... Bc6 {[%clk 0:01:17.7]} 52. Ng3 {[%clk 0:00:50.5]} 52...
g6 {[%clk 0:01:13.3]} 53. Nf1 {[%clk 0:00:45.9]} 53... Rc3+ {[%clk 0:01:07.5]}
54. Kd2 {[%clk 0:00:44.2]} 54... Rc1 {[%clk 0:01:08.6]} 55. Rxb2 {[%clk
0:00:37.5]} 55... Rxf1 {[%clk 0:01:09.4]} 0-1

[Event "***Titled Tuesday 3|2 Blitz"]
[Site "Chess.com"]
[Date "2017.02.07"]
[Round "1"]
[White "Bad4life"]
[Black "1stSecond"]
[Result "0-1"]
[WhiteElo "2295"]
[BlackElo "2580"]
[TimeControl "180+2"]
[EndTime "13:09:00 PST"]
[Termination "1stSecond won by checkmate"]

1. e4 {[%clk 0:03:02]} 1... e5 {[%clk 0:02:59.4]} 2. Nf3 {[%clk 0:03:01.9]} 2...
Nc6 {[%clk 0:02:59.8]} 3. Bb5 {[%clk 0:03:02.7]} 3... a6 {[%clk 0:03:00.9]} 4.
Ba4 {[%clk 0:03:04]} 4... Nf6 {[%clk 0:03:01.6]} 5. O-O {[%clk 0:03:04.8]} 5...
b5 {[%clk 0:03:02.8]} 6. Bb3 {[%clk 0:03:06]} 6... Bb7 {[%clk 0:03:04.1]} 7. a4
{[%clk 0:03:04.6]} 7... Bc5 {[%clk 0:02:59.4]} 8. d3 {[%clk 0:02:48.8]} 8... O-O
{[%clk 0:02:48.3]} 9. Nc3 {[%clk 0:02:44.9]} 9... b4 {[%clk 0:02:41.8]} 10. Ne2
{[%clk 0:02:39.2]} 10... Na5 {[%clk 0:02:16.2]} 11. Nxe5 {[%clk 0:02:17.6]}
11... Nxb3 {[%clk 0:02:17.2]} 12. cxb3 {[%clk 0:02:18.4]} 12... d5 {[%clk
0:02:19.1]} 13. d4 {[%clk 0:02:06.5]} 13... Ba7 {[%clk 0:02:20.1]} 14. Bg5
{[%clk 0:01:58.5]} 14... dxe4 {[%clk 0:02:15.9]} 15. Bxf6 {[%clk 0:01:52.7]}
15... gxf6 {[%clk 0:02:09.5]} 16. Ng4 {[%clk 0:01:49.8]} 16... f5 {[%clk
0:01:47.3]} 17. Nh6+ {[%clk 0:01:44.9]} 17... Kh8 {[%clk 0:01:48.9]} 18. Nxf5
{[%clk 0:01:42.6]} 18... Qg5 {[%clk 0:01:50.1]} 19. Nfg3 {[%clk 0:01:38.8]}
19... f5 {[%clk 0:01:49.6]} 20. Qc1 {[%clk 0:01:38]} 20... f4 {[%clk 0:01:41.9]}
21. Qxc7 {[%clk 0:01:27.7]} 21... Bd5 {[%clk 0:01:43.1]} 22. h4 {[%clk
0:01:15.8]} 22... Qxh4 {[%clk 0:00:44]} 23. Qe5+ {[%clk 0:01:16.1]} 23... Qf6
{[%clk 0:00:44.9]} 24. Qxd5 {[%clk 0:01:15.1]} 24... fxg3 {[%clk 0:00:45.2]} 25.
Nxg3 {[%clk 0:01:13.2]} 25... Rad8 {[%clk 0:00:42]} 26. Qxe4 {[%clk 0:01:09]}
26... Rxd4 {[%clk 0:00:41.7]} 27. Qb7 {[%clk 0:01:00.5]} 27... Rf7 {[%clk
0:00:42.8]} 28. Qc8+ {[%clk 0:00:58]} 28... Rd8 {[%clk 0:00:43.8]} 29. Qc4
{[%clk 0:00:54.2]} 29... Bxf2+ {[%clk 0:00:36.1]} 30. Rxf2 {[%clk 0:00:45.8]}
30... Qxf2+ {[%clk 0:00:38]} 31. Kh2 {[%clk 0:00:47.5]} 31... Rf4 {[%clk
0:00:39]} 32. Rd1 {[%clk 0:00:21.5]} 32... Rdf8 {[%clk 0:00:34.4]} 33. Rf1
{[%clk 0:00:17.3]} 33... Qxf1 {[%clk 0:00:29.1]} 34. Nxf1 {[%clk 0:00:13.4]}
34... Rxc4 {[%clk 0:00:30]} 35. bxc4 {[%clk 0:00:14.4]} 35... Rxf1 {[%clk
0:00:31.5]} 36. a5 {[%clk 0:00:15]} 36... Kg7 {[%clk 0:00:32.2]} 37. b3 {[%clk
0:00:16.5]} 37... Kf6 {[%clk 0:00:32.8]} 38. Kg3 {[%clk 0:00:18.1]} 38... Ke5
{[%clk 0:00:34.2]} 39. Kh4 {[%clk 0:00:19.6]} 39... Kd4 {[%clk 0:00:35.1]} 40.
g4 {[%clk 0:00:21.5]} 40... Rf3 {[%clk 0:00:35.6]} 41. c5 {[%clk 0:00:23.4]}
41... Kxc5 {[%clk 0:00:36.3]} 42. Kh5 {[%clk 0:00:24.9]} 42... Rxb3 {[%clk
0:00:37.7]} 43. g5 {[%clk 0:00:26.8]} 43... Rh3+ {[%clk 0:00:38.8]} 44. Kg4
{[%clk 0:00:28]} 44... Rh1 {[%clk 0:00:40.7]} 45. Kf5 {[%clk 0:00:29.9]} 45...
Rg1 {[%clk 0:00:42.1]} 46. Kf6 {[%clk 0:00:31.2]} 46... b3 {[%clk 0:00:43.6]}
47. g6 {[%clk 0:00:32.6]} 47... Rxg6+ {[%clk 0:00:43.7]} 48. Ke5 {[%clk
0:00:32.6]} 48... Kb4 {[%clk 0:00:44.8]} 49. Kd4 {[%clk 0:00:34]} 49... b2
{[%clk 0:00:46.2]} 50. Ke3 {[%clk 0:00:35.8]} 50... b1=Q {[%clk 0:00:47.5]} 51.
Kd2 {[%clk 0:00:37.7]} 51... Rg3 {[%clk 0:00:47.5]} 52. Ke2 {[%clk 0:00:39]}
52... Qd3+ {[%clk 0:00:48.1]} 53. Kf2 {[%clk 0:00:40.9]} 53... Qe3+ {[%clk
0:00:49.2]} 54. Kf1 {[%clk 0:00:42.1]} 54... Rg1# {[%clk 0:00:51]} 0-1

[Event "***Titled Tuesday 3|2 Blitz"]
[Site "Chess.com"]
[Date "2017.02.07"]
[Round "1"]
[White "hsskoo"]
[Black "IMJonathanCarlstedt"]
[Result "0-1"]
[WhiteElo "1970"]
[BlackElo "2433"]
[TimeControl "180+2"]
[EndTime "13:09:12 PST"]
[Termination "IMJonathanCarlstedt won on time"]

1. e4 {[%clk 0:03:00]} 1... e5 {[%clk 0:03:00]} 2. Nf3 {[%clk 0:02:57]} 2... Nc6
{[%clk 0:02:43]} 3. d4 {[%clk 0:02:55.1]} 3... exd4 {[%clk 0:02:42.6]} 4. Nxd4
{[%clk 0:02:55.5]} 4... Nf6 {[%clk 0:02:43.7]} 5. Nc3 {[%clk 0:02:55.1]} 5...
Bb4 {[%clk 0:02:39.4]} 6. Bc4 {[%clk 0:02:40.2]} 6... O-O {[%clk 0:02:11.5]} 7.
O-O {[%clk 0:02:39.8]} 7... Bxc3 {[%clk 0:02:10.3]} 8. bxc3 {[%clk 0:02:39.6]}
8... Nxe4 {[%clk 0:02:11.4]} 9. Bd3 {[%clk 0:02:33.5]} 9... d5 {[%clk
0:02:11.1]} 10. Ba3 {[%clk 0:02:16.2]} 10... Re8 {[%clk 0:02:10.7]} 11. Ne2
{[%clk 0:02:12]} 11... Ne5 {[%clk 0:02:06.9]} 12. c4 {[%clk 0:02:08.2]} 12...
Nxd3 {[%clk 0:02:01.6]} 13. cxd3 {[%clk 0:02:08.1]} 13... Nf6 {[%clk 0:02:01.3]}
14. Qc2 {[%clk 0:02:00.2]} 14... Bf5 {[%clk 0:01:57.1]} 15. Ng3 {[%clk
0:01:58.3]} 15... Bg6 {[%clk 0:01:57.5]} 16. Qb3 {[%clk 0:01:48.5]} 16... b6
{[%clk 0:01:52.8]} 17. Rad1 {[%clk 0:01:41.7]} 17... Qd7 {[%clk 0:01:46.5]} 18.
d4 {[%clk 0:01:34.7]} 18... dxc4 {[%clk 0:01:44.2]} 19. Qxc4 {[%clk 0:01:32.3]}
19... Rac8 {[%clk 0:01:45.6]} 20. d5 {[%clk 0:01:29.5]} 20... c5 {[%clk
0:01:41.2]} 21. dxc6 {[%clk 0:01:27]} 21... Qxc6 {[%clk 0:01:42.2]} 22. Qa6
{[%clk 0:01:24.9]} 22... Qc4 {[%clk 0:01:23.1]} 23. Qxc4 {[%clk 0:00:58.7]}
23... Rxc4 {[%clk 0:01:23.6]} 24. Rd2 {[%clk 0:00:55.3]} 24... h5 {[%clk
0:01:23.2]} 25. Rc1 {[%clk 0:00:47.9]} 25... Rxc1+ {[%clk 0:01:21.6]} 26. Bxc1
{[%clk 0:00:43.6]} 26... Re1+ {[%clk 0:01:22.9]} 27. Nf1 {[%clk 0:00:44.4]}
27... Rxc1 {[%clk 0:01:23.6]} 28. Rd8+ {[%clk 0:00:44.2]} 28... Kh7 {[%clk
0:01:23.6]} 29. h3 {[%clk 0:00:44.5]} 29... Ra1 {[%clk 0:01:17.2]} 30. Rd2
{[%clk 0:00:38.2]} 30... Ne4 {[%clk 0:01:17.1]} 31. Rb2 {[%clk 0:00:37.6]} 31...
Nc5 {[%clk 0:01:17.7]} 32. g4 {[%clk 0:00:24.2]} 32... Bd3 {[%clk 0:01:16.5]}
33. gxh5 {[%clk 0:00:22.4]} 33... Bxf1 {[%clk 0:01:16.5]} 34. Kh2 {[%clk
0:00:22.9]} 34... Bc4 {[%clk 0:01:17.1]} 35. Kg3 {[%clk 0:00:18.7]} 35... Rxa2
{[%clk 0:01:16.7]} 36. Rb1 {[%clk 0:00:16.4]} 36... b5 {[%clk 0:01:16]} 37. h6
{[%clk 0:00:13.1]} 37... gxh6 {[%clk 0:01:16.3]} 38. h4 {[%clk 0:00:12.6]} 38...
Ne4+ {[%clk 0:01:16.3]} 39. Kf4 {[%clk 0:00:12.6]} 39... Nxf2 {[%clk 0:01:16.8]}
40. h5 {[%clk 0:00:13.4]} 40... a5 {[%clk 0:01:15.8]} 41. Rf1 {[%clk 0:00:10.3]}
41... b4 {[%clk 0:01:15.7]} 42. Rg1 {[%clk 0:00:09.2]} 42... Nh3+ {[%clk
0:01:15.2]} 43. Ke5 {[%clk 0:00:08.2]} 43... Nxg1 {[%clk 0:01:16.6]} 0-1

[Event "***Titled Tuesday 3|2 Blitz"]
[Site "Chess.com"]
[Date "2017.02.07"]
[Round "1"]
[White "DryCounty"]
[Black "Dlugy"]
[Result "1/2-1/2"]
[WhiteElo "2394"]
[BlackElo "2695"]
[TimeControl "180+2"]
[EndTime "13:09:18 PST"]
[Termination "Game drawn by repetition"]

1. c4 {[%clk 0:03:02]} 1... Nf6 {[%clk 0:03:00]} 2. Nf3 {[%clk 0:03:01.4]} 2...
g6 {[%clk 0:03:00.1]} 3. Nc3 {[%clk 0:03:00.5]} 3... Bg7 {[%clk 0:03:02]} 4. e4
{[%clk 0:03:00.5]} 4... d6 {[%clk 0:03:03.1]} 5. d4 {[%clk 0:03:00.5]} 5... O-O
{[%clk 0:03:04.4]} 6. Be2 {[%clk 0:02:57.9]} 6... e5 {[%clk 0:03:05.4]} 7. Be3
{[%clk 0:02:44]} 7... exd4 {[%clk 0:03:04]} 8. Nxd4 {[%clk 0:02:42.2]} 8... Re8
{[%clk 0:03:05.4]} 9. f3 {[%clk 0:02:42.6]} 9... c6 {[%clk 0:03:06.8]} 10. Bf2
{[%clk 0:02:38.7]} 10... d5 {[%clk 0:03:05.9]} 11. exd5 {[%clk 0:02:38.6]} 11...
cxd5 {[%clk 0:03:07]} 12. O-O {[%clk 0:02:38.8]} 12... Nc6 {[%clk 0:03:02.9]}
13. c5 {[%clk 0:02:36]} 13... Bf8 {[%clk 0:03:01.7]} 14. Nb3 {[%clk 0:02:11.7]}
14... a5 {[%clk 0:02:35.5]} 15. a4 {[%clk 0:02:06.2]} 15... Be6 {[%clk
0:02:25.6]} 16. Nb5 {[%clk 0:02:02.6]} 16... Nh5 {[%clk 0:02:22]} 17. g3 {[%clk
0:01:58.7]} 17... Bg7 {[%clk 0:02:17.5]} 18. N3d4 {[%clk 0:01:51.4]} 18... Re7
{[%clk 0:01:41.2]} 19. Re1 {[%clk 0:01:43.8]} 19... Nb4 {[%clk 0:01:29.2]} 20.
Bf1 {[%clk 0:01:29.5]} 20... Bd7 {[%clk 0:01:18.8]} 21. Qd2 {[%clk 0:01:13]}
21... Rc8 {[%clk 0:01:06.7]} 22. Nd6 {[%clk 0:01:03.3]} 22... Rxc5 {[%clk
0:01:02.9]} 23. Nxb7 {[%clk 0:01:01.4]} 23... Rxe1 {[%clk 0:00:49.9]} 24. Rxe1
{[%clk 0:01:01.3]} 24... Qc8 {[%clk 0:00:41.6]} 25. Nxc5 {[%clk 0:01:01.8]}
25... Qxc5 {[%clk 0:00:43.5]} 26. Nf5 {[%clk 0:00:59.3]} 26... Qc7 {[%clk
0:00:31.9]} 27. Nxg7 {[%clk 0:00:57.6]} 27... Nxg7 {[%clk 0:00:32.8]} 28. Bd4
{[%clk 0:00:56.5]} 28... Bxa4 {[%clk 0:00:31.9]} 29. Rc1 {[%clk 0:00:44.4]}
29... Qd8 {[%clk 0:00:28.3]} 30. Qe1 {[%clk 0:00:33.3]} 30... Ne6 {[%clk
0:00:28.6]} 31. Qf2 {[%clk 0:00:23.6]} 31... Nxd4 {[%clk 0:00:20.6]} 32. Qxd4
{[%clk 0:00:24]} 32... h5 {[%clk 0:00:20.8]} 33. Qc5 {[%clk 0:00:19.4]} 33...
Qg5 {[%clk 0:00:18.9]} 34. f4 {[%clk 0:00:18.7]} 34... Qf6 {[%clk 0:00:20.2]}
35. Re1 {[%clk 0:00:17.3]} 35... Qxb2 {[%clk 0:00:15.7]} 36. Qxa5 {[%clk
0:00:17.5]} 36... Qd4+ {[%clk 0:00:16.6]} 37. Kh1 {[%clk 0:00:17.8]} 37... Bc2
{[%clk 0:00:17.8]} 38. Qd8+ {[%clk 0:00:17.3]} 38... Kh7 {[%clk 0:00:17.9]} 39.
Bg2 {[%clk 0:00:18.4]} 39... Nd3 {[%clk 0:00:17.8]} 40. Rf1 {[%clk 0:00:12.8]}
40... Nf2+ {[%clk 0:00:18.9]} 41. Rxf2 {[%clk 0:00:09.9]} 41... Qxf2 {[%clk
0:00:20.8]} 42. Qe7 {[%clk 0:00:07.1]} 42... Kg7 {[%clk 0:00:18.2]} 43. Qe5+
{[%clk 0:00:08.2]} 43... Kg8 {[%clk 0:00:19.2]} 44. Qe8+ {[%clk 0:00:09.2]}
44... Kg7 {[%clk 0:00:20]} 45. Qe5+ {[%clk 0:00:10.7]} 45... Kh7 {[%clk
0:00:20.9]} 46. Qe7 {[%clk 0:00:11.5]} 46... Kg8 {[%clk 0:00:21.5]} 47. Qe8+
{[%clk 0:00:12.6]} 47... Kg7 {[%clk 0:00:22.6]} 48. Qe5+ {[%clk 0:00:13.5]}
1/2-1/2